[Event "Early-Titled-Tuesday-Blitz-April-16-2024"]
[Site "Chess.com"]
[Date "2024.04.16"]
[Round "2"]
[White "BashiqChess"]
[Black "kyuotbi"]
[Result "1/2-1/2"]
[WhiteElo "2497"]
[BlackElo "2265"]
[TimeControl "180+1"]
[EndTime "8:21:19 PDT"]
[Termination "Game drawn by repetition"]

1. Nf3 {[%clk 0:03:00.2]} 1... Nf6 {[%clk 0:02:59]} 2. b3 {[%clk 0:03:00]} 2...
g6 {[%clk 0:02:55.8]} 3. Bb2 {[%clk 0:02:56.6]} 3... Bg7 {[%clk 0:02:55.9]} 4.
g3 {[%clk 0:02:57.1]} 4... d6 {[%clk 0:02:55.6]} 5. d4 {[%clk 0:02:56.9]} 5...
O-O {[%clk 0:02:54.6]} 6. Bg2 {[%clk 0:02:57.5]} 6... d5 {[%clk 0:02:52.8]} 7.
O-O {[%clk 0:02:56.1]} 7... Bf5 {[%clk 0:02:51.4]} 8. c4 {[%clk 0:02:54.7]} 8...
c6 {[%clk 0:02:47.6]} 9. Nc3 {[%clk 0:02:50.2]} 9... Ne4 {[%clk 0:02:46.2]} 10.
e3 {[%clk 0:02:35.8]} 10... Na6 {[%clk 0:02:43.5]} 11. h3 {[%clk 0:02:35]} 11...
h5 {[%clk 0:02:29.1]} 12. Nh4 {[%clk 0:02:28.9]} 12... Nxc3 {[%clk 0:02:25.5]}
13. Bxc3 {[%clk 0:02:29.8]} 13... Be6 {[%clk 0:02:25.4]} 14. Qe2 {[%clk
0:02:26.3]} 14... Nc7 {[%clk 0:02:23.5]} 15. Rfd1 {[%clk 0:02:24.4]} 15... b5
{[%clk 0:02:23]} 16. cxd5 {[%clk 0:02:18.6]} 16... cxd5 {[%clk 0:02:21.8]} 17.
Rac1 {[%clk 0:02:13.8]} 17... a5 {[%clk 0:02:18.4]} 18. Nf3 {[%clk 0:02:09.1]}
18... Qd7 {[%clk 0:02:16.6]} 19. Kh2 {[%clk 0:02:01.8]} 19... b4 {[%clk
0:02:14.5]} 20. Ba1 {[%clk 0:01:54.7]} 20... a4 {[%clk 0:02:12.1]} 21. Ne5
{[%clk 0:01:52.5]} 21... Bxe5 {[%clk 0:02:03.1]} 22. dxe5 {[%clk 0:01:53.4]}
22... axb3 {[%clk 0:02:00.8]} 23. axb3 {[%clk 0:01:54.3]} 23... Nb5 {[%clk
0:02:00.3]} 24. Rc5 {[%clk 0:01:36]} 24... Ra5 {[%clk 0:01:41.9]} 25. Bxd5
{[%clk 0:01:21.2]} 25... Nc3 {[%clk 0:01:37.2]} 26. Rxc3 {[%clk 0:00:18.3]}
26... bxc3 {[%clk 0:01:35.1]} 27. Bxe6 {[%clk 0:00:17.7]} 27... Qxe6 {[%clk
0:01:34.8]} 28. Bxc3 {[%clk 0:00:17.9]} 28... Rc5 {[%clk 0:01:34.5]} 29. Bd4
{[%clk 0:00:17.6]} 29... Rc6 {[%clk 0:01:31]} 30. b4 {[%clk 0:00:17.7]} 30...
Rfc8 {[%clk 0:01:30.6]} 31. b5 {[%clk 0:00:16.6]} 31... Rc2 {[%clk 0:01:30.2]}
32. Rd2 {[%clk 0:00:16.6]} 32... Qb3 {[%clk 0:01:26.1]} 33. b6 {[%clk
0:00:10.1]} 33... Rxd2 {[%clk 0:01:21.1]} 34. Qxd2 {[%clk 0:00:11]} 34... Rc2
{[%clk 0:01:21]} 35. Qe1 {[%clk 0:00:11.4]} 35... Qa2 {[%clk 0:01:16.8]} 36. Kg2
{[%clk 0:00:10.5]} 36... e6 {[%clk 0:01:12.6]} 37. e4 {[%clk 0:00:10.6]} 37...
Qb3 {[%clk 0:01:06]} 38. Be3 {[%clk 0:00:09.6]} 38... Kg7 {[%clk 0:01:01]} 39.
h4 {[%clk 0:00:08.9]} 39... Qc4 {[%clk 0:00:51.1]} 40. Kf3 {[%clk 0:00:06.7]}
40... Qc6 {[%clk 0:00:36.5]} 41. Qd1 {[%clk 0:00:06]} 41... Rc4 {[%clk
0:00:35.5]} 42. Qd3 {[%clk 0:00:04.7]} 42... f5 {[%clk 0:00:26.1]} 43. exf6+
{[%clk 0:00:04.6]} 43... Kxf6 {[%clk 0:00:26.3]} 44. b7 {[%clk 0:00:05.3]} 44...
Rb4 {[%clk 0:00:23.3]} 45. Bg5+ {[%clk 0:00:05]} 45... Kf7 {[%clk 0:00:22.8]}
46. Qe3 {[%clk 0:00:02.2]} 46... Qxb7 {[%clk 0:00:17.5]} 47. Qf4+ {[%clk
0:00:02.4]} 47... Ke8 {[%clk 0:00:17.1]} 48. Bh6 {[%clk 0:00:02.3]} 48... Rb3+
{[%clk 0:00:15.9]} 49. Kg2 {[%clk 0:00:02.7]} 49... Rb4 {[%clk 0:00:15.3]} 50.
Qf8+ {[%clk 0:00:02.8]} 50... Kd7 {[%clk 0:00:14.5]} 51. Qf7+ {[%clk 0:00:03.5]}
51... Kc6 {[%clk 0:00:12.8]} 52. Qxe6+ {[%clk 0:00:03.7]} 52... Kb5 {[%clk
0:00:11.4]} 53. Qe5+ {[%clk 0:00:04.4]} 53... Ka4 {[%clk 0:00:11.1]} 54. Qa1+
{[%clk 0:00:04.5]} 54... Kb3 {[%clk 0:00:10.5]} 55. Qb1+ {[%clk 0:00:04.4]}
55... Kc4 {[%clk 0:00:10.4]} 56. Qc2+ {[%clk 0:00:04.9]} 56... Kb5 {[%clk
0:00:10.3]} 57. Qd3+ {[%clk 0:00:05.2]} 57... Rc4 {[%clk 0:00:09.5]} 58. f3
{[%clk 0:00:03.8]} 58... Qc6 {[%clk 0:00:08.3]} 59. Qb3+ {[%clk 0:00:03.8]}
59... Kc5 {[%clk 0:00:07.7]} 60. Be3+ {[%clk 0:00:03.2]} 60... Kd6 {[%clk
0:00:07.9]} 61. Qa3+ {[%clk 0:00:03.4]} 61... Ke6 {[%clk 0:00:07.4]} 62. Qd3
{[%clk 0:00:02.5]} 62... Rc2+ {[%clk 0:00:06.5]} 63. Kh3 {[%clk 0:00:02.3]}
63... Rc3 {[%clk 0:00:07]} 64. Qd4 {[%clk 0:00:02.4]} 64... Qc4 {[%clk
0:00:06.4]} 65. Qxc4+ {[%clk 0:00:02]} 65... Rxc4 {[%clk 0:00:06.9]} 66. Bf4
{[%clk 0:00:02.6]} 66... Rc3 {[%clk 0:00:06.7]} 67. Kg2 {[%clk 0:00:03]} 67...
Rc2+ {[%clk 0:00:06.9]} 68. Kf1 {[%clk 0:00:03.5]} 68... Rh2 {[%clk 0:00:06.4]}
69. Kg1 {[%clk 0:00:02.7]} 69... Re2 {[%clk 0:00:06]} 70. Kf1 {[%clk 0:00:02.8]}
70... Rh2 {[%clk 0:00:05.5]} 71. Bg5 {[%clk 0:00:03.2]} 71... Rb2 {[%clk
0:00:04]} 72. f4 {[%clk 0:00:01.7]} 72... Rb3 {[%clk 0:00:03.8]} 73. Kf2 {[%clk
0:00:01.8]} 73... Rb2+ {[%clk 0:00:04.4]} 74. Ke3 {[%clk 0:00:02.4]} 74... Rb3+
{[%clk 0:00:04.6]} 75. Kf2 {[%clk 0:00:03]} 75... Rb2+ {[%clk 0:00:04.8]} 76.
Kf3 {[%clk 0:00:03.7]} 76... Rb3+ {[%clk 0:00:04.9]} 77. Kg2 {[%clk 0:00:04.4]}
77... Rb2+ {[%clk 0:00:05.5]} 78. Kh3 {[%clk 0:00:05.1]} 78... Rb3 {[%clk
0:00:05.8]} 79. Bh6 {[%clk 0:00:05.5]} 79... Rd3 {[%clk 0:00:05.8]} 80. Bg7
{[%clk 0:00:05.8]} 80... Rb3 {[%clk 0:00:05.5]} 81. Bh8 {[%clk 0:00:05.7]} 81...
Rd3 {[%clk 0:00:05.7]} 82. Kg2 {[%clk 0:00:06.3]} 82... Rb3 {[%clk 0:00:06.1]}
83. Be5 {[%clk 0:00:06.2]} 83... Rd3 {[%clk 0:00:06.4]} 84. Kf2 {[%clk
0:00:06.6]} 84... Rd2+ {[%clk 0:00:06.4]} 85. Ke3 {[%clk 0:00:06.3]} 85... Rg2
{[%clk 0:00:06.9]} 86. Kf3 {[%clk 0:00:07]} 86... Ra2 {[%clk 0:00:06.1]} 87. Bd4
{[%clk 0:00:07.6]} 87... Ra3+ {[%clk 0:00:06]} 88. Be3 {[%clk 0:00:08.2]} 88...
Rb3 {[%clk 0:00:05.5]} 89. Kf2 {[%clk 0:00:08.2]} 89... Rb2+ {[%clk 0:00:05.1]}
90. Kf3 {[%clk 0:00:08.4]} 90... Rb3 {[%clk 0:00:05.5]} 91. Ke2 {[%clk
0:00:07.5]} 91... Rb2+ {[%clk 0:00:05.7]} 92. Bd2 {[%clk 0:00:07.9]} 92... Rb3
{[%clk 0:00:05.3]} 93. Be3 {[%clk 0:00:08]} 93... Rb2+ {[%clk 0:00:03.3]} 94.
Kf1 {[%clk 0:00:08.4]} 94... Rb3 {[%clk 0:00:02.9]} 95. Bf2 {[%clk 0:00:08.6]}
95... Rf3 {[%clk 0:00:02.3]} 96. Ke2 {[%clk 0:00:07.8]} 96... Rb3 {[%clk
0:00:02.6]} 97. Be1 {[%clk 0:00:07.9]} 97... Rb2+ {[%clk 0:00:02.8]} 98. Kd3
{[%clk 0:00:07.6]} 98... Rb3+ {[%clk 0:00:03.2]} 99. Bc3 {[%clk 0:00:08.1]}
99... Ra3 {[%clk 0:00:03.7]} 100. Kd4 {[%clk 0:00:04.3]} 100... Ra2 {[%clk
0:00:03.9]} 101. Ke3 {[%clk 0:00:02.6]} 101... Rg2 {[%clk 0:00:04.2]} 102. Kf3
{[%clk 0:00:03.1]} 102... Rc2 {[%clk 0:00:04.4]} 103. Bh8 {[%clk 0:00:03.4]}
103... Ra2 {[%clk 0:00:03.9]} 104. Bg7 {[%clk 0:00:03.3]} 104... Ra3+ {[%clk
0:00:04.1]} 105. Kg2 {[%clk 0:00:03.2]} 105... Ra2+ {[%clk 0:00:04.7]} 106. Kh3
{[%clk 0:00:03.7]} 106... Ra3 {[%clk 0:00:05]} 107. Bf8 {[%clk 0:00:03.8]}
107... Re3 {[%clk 0:00:05.5]} 108. e5 {[%clk 0:00:03.3]} 108... Kf5 {[%clk
0:00:05.6]} 109. Be7 {[%clk 0:00:03]} 109... Rd3 {[%clk 0:00:05.1]} 110. Bf6
{[%clk 0:00:02.2]} 110... Rb3 {[%clk 0:00:04.7]} 111. Bg7 {[%clk 0:00:02.4]}
111... Rd3 {[%clk 0:00:05.3]} 112. Bh8 {[%clk 0:00:02.8]} 112... Rb3 {[%clk
0:00:05.6]} 113. Bg7 {[%clk 0:00:03.4]} 113... Rd3 {[%clk 0:00:06.2]} 114. Bh8
{[%clk 0:00:04.1]} 114... Rb3 {[%clk 0:00:06.3]} 115. Bg7 {[%clk 0:00:04.8]}
1/2-1/2

[Event "Early-Titled-Tuesday-Blitz-April-16-2024"]
[Site "Chess.com"]
[Date "2024.04.16"]
[Round "3"]
[White "Incognizance"]
[Black "Shivananda1964"]
[Result "0-1"]
[WhiteElo "1909"]
[BlackElo "2339"]
[TimeControl "180+1"]
[EndTime "8:22:57 PDT"]
[Termination "Shivananda1964 won by checkmate"]

1. d4 {[%clk 0:03:00.9]} 1... Nf6 {[%clk 0:02:59.4]} 2. c4 {[%clk 0:03:01.2]}
2... Nc6 {[%clk 0:02:55.9]} 3. Nc3 {[%clk 0:03:00.3]} 3... e5 {[%clk 0:02:56]}
4. d5 {[%clk 0:02:57.3]} 4... Ne7 {[%clk 0:02:56.1]} 5. e4 {[%clk 0:02:57.8]}
5... Ng6 {[%clk 0:02:56.5]} 6. Bg5 {[%clk 0:02:55.4]} 6... h6 {[%clk 0:02:51.5]}
7. Bxf6 {[%clk 0:02:55]} 7... Qxf6 {[%clk 0:02:50.8]} 8. Nf3 {[%clk 0:02:55.5]}
8... Bc5 {[%clk 0:02:50.3]} 9. h3 {[%clk 0:02:53.1]} 9... a6 {[%clk 0:02:45.9]}
10. Be2 {[%clk 0:02:50.7]} 10... d6 {[%clk 0:02:46.2]} 11. O-O {[%clk
0:02:50.5]} 11... Nf4 {[%clk 0:02:43.6]} 12. a3 {[%clk 0:02:41.5]} 12... Qg6
{[%clk 0:02:41.9]} 13. Kh2 {[%clk 0:02:34.9]} 13... Qxg2# {[%clk 0:02:40.9]} 0-1

[Event "Early-Titled-Tuesday-Blitz-April-16-2024"]
[Site "Chess.com"]
[Date "2024.04.16"]
[Round "3"]
[White "campochess"]
[Black "crazy_but_lazy"]
[Result "0-1"]
[WhiteElo "2212"]
[BlackElo "2555"]
[TimeControl "180+1"]
[EndTime "8:24:34 PDT"]
[Termination "crazy_but_lazy won by resignation"]

1. Nf3 {[%clk 0:02:59.9]} 1... d5 {[%clk 0:02:58.8]} 2. b3 {[%clk 0:02:59.9]}
2... Bg4 {[%clk 0:02:52.6]} 3. Bb2 {[%clk 0:02:59.1]} 3... Nd7 {[%clk
0:02:51.2]} 4. d4 {[%clk 0:02:56.6]} 4... e6 {[%clk 0:02:48.4]} 5. c4 {[%clk
0:02:56.4]} 5... c6 {[%clk 0:02:48.6]} 6. Nbd2 {[%clk 0:02:56.3]} 6... Ngf6
{[%clk 0:02:48.6]} 7. g3 {[%clk 0:02:56.3]} 7... Bd6 {[%clk 0:02:48.3]} 8. Bg2
{[%clk 0:02:56.2]} 8... O-O {[%clk 0:02:48]} 9. O-O {[%clk 0:02:56.1]} 9... a5
{[%clk 0:02:40.2]} 10. h3 {[%clk 0:02:54.7]} 10... Bh5 {[%clk 0:02:38.7]} 11.
Re1 {[%clk 0:02:47.8]} 11... a4 {[%clk 0:02:35.6]} 12. e4 {[%clk 0:02:46.1]}
12... dxe4 {[%clk 0:02:31.7]} 13. Nxe4 {[%clk 0:02:45.9]} 13... Nxe4 {[%clk
0:02:32]} 14. Rxe4 {[%clk 0:02:45.9]} 14... Qa5 {[%clk 0:02:32.2]} 15. g4 {[%clk
0:02:30.5]} 15... Bg6 {[%clk 0:02:30.9]} 16. Re2 {[%clk 0:02:30.5]} 16... Rfd8
{[%clk 0:02:14.4]} 17. Qd2 {[%clk 0:02:24.9]} 17... Bb4 {[%clk 0:02:12.1]} 18.
Qg5 {[%clk 0:02:24.8]} 18... Qxg5 {[%clk 0:02:08.2]} 19. Nxg5 {[%clk 0:02:23.7]}
19... a3 {[%clk 0:02:08.3]} 20. d5 {[%clk 0:01:53.8]} 20... axb2 {[%clk
0:02:07.9]} 21. Rxb2 {[%clk 0:01:51.4]} 21... Bc3 {[%clk 0:02:08.3]} 0-1

[Event "Early-Titled-Tuesday-Blitz-April-16-2024"]
[Site "Chess.com"]
[Date "2024.04.16"]
[Round "3"]
[White "chezzgirl04"]
[Black "Mazarini41"]
[Result "0-1"]
[WhiteElo "2120"]
[BlackElo "2358"]
[TimeControl "180+1"]
[EndTime "8:24:38 PDT"]
[Termination "Mazarini41 won by resignation"]

1. e4 {[%clk 0:02:56.7]} 1... e6 {[%clk 0:03:00.3]} 2. d4 {[%clk 0:02:56.8]}
2... d5 {[%clk 0:02:59.8]} 3. exd5 {[%clk 0:02:56.5]} 3... exd5 {[%clk
0:02:59.7]} 4. Nf3 {[%clk 0:02:56.6]} 4... Nc6 {[%clk 0:02:59.8]} 5. c3 {[%clk
0:02:55.4]} 5... Bg4 {[%clk 0:03:00.2]} 6. Bd3 {[%clk 0:02:46.6]} 6... Qd7
{[%clk 0:02:53.8]} 7. O-O {[%clk 0:02:46.3]} 7... Bd6 {[%clk 0:02:50.6]} 8. b4
{[%clk 0:02:41.7]} 8... O-O-O {[%clk 0:02:48.4]} 9. a4 {[%clk 0:02:39.9]} 9...
f6 {[%clk 0:02:44.4]} 10. a5 {[%clk 0:02:37.6]} 10... g5 {[%clk 0:02:36.1]} 11.
a6 {[%clk 0:02:36.6]} 11... b6 {[%clk 0:02:33.2]} 12. Bb5 {[%clk 0:02:35.9]}
12... Nge7 {[%clk 0:02:30.9]} 13. Qa4 {[%clk 0:02:34.9]} 13... h5 {[%clk
0:02:27.4]} 14. c4 {[%clk 0:02:26.5]} 14... Bxf3 {[%clk 0:02:26.9]} 15. gxf3
{[%clk 0:02:26.1]} 15... dxc4 {[%clk 0:02:26.2]} 16. Re1 {[%clk 0:01:56.2]}
16... Qh3 {[%clk 0:02:24.7]} 17. f4 {[%clk 0:01:53.7]} 17... Nxd4 {[%clk
0:02:17]} 0-1

[Event "Early-Titled-Tuesday-Blitz-April-16-2024"]
[Site "Chess.com"]
[Date "2024.04.16"]
[Round "3"]
[White "zverr1"]
[Black "Skatchkov_V"]
[Result "1-0"]
[WhiteElo "2510"]
[BlackElo "2641"]
[TimeControl "180+1"]
[EndTime "8:24:41 PDT"]
[Termination "zverr1 won by resignation"]

1. e4 {[%clk 0:03:00.9]} 1... e5 {[%clk 0:02:58.1]} 2. Nf3 {[%clk 0:03:00.7]}
2... Nf6 {[%clk 0:02:58.3]} 3. d4 {[%clk 0:02:57.2]} 3... Nxe4 {[%clk
0:02:57.9]} 4. dxe5 {[%clk 0:02:57.3]} 4... Bc5 {[%clk 0:02:55.8]} 5. Bc4 {[%clk
0:02:52.7]} 5... Nxf2 {[%clk 0:02:54.2]} 6. Bxf7+ {[%clk 0:02:51.9]} 6... Kxf7
{[%clk 0:02:53.9]} 7. Qd5+ {[%clk 0:02:52.6]} 7... Kg6 {[%clk 0:02:54.1]} 8.
Qxc5 {[%clk 0:02:52.5]} 8... Nxh1 {[%clk 0:02:54.7]} 9. Qc4 {[%clk 0:02:49.1]}
9... d6 {[%clk 0:02:47.9]} 10. Qe4+ {[%clk 0:02:27.8]} 10... Kf7 {[%clk
0:02:42.9]} 11. e6+ {[%clk 0:02:24.5]} 11... Kf8 {[%clk 0:01:57.7]} 12. Bg5
{[%clk 0:02:17.1]} 12... Qe8 {[%clk 0:01:57.1]} 13. e7+ {[%clk 0:02:05.8]} 13...
Kf7 {[%clk 0:01:57.4]} 14. Qf4+ {[%clk 0:01:46]} 14... Ke6 {[%clk 0:01:56]} 15.
Nd4+ {[%clk 0:01:43.2]} 1-0

[Event "Early-Titled-Tuesday-Blitz-April-16-2024"]
[Site "Chess.com"]
[Date "2024.04.16"]
[Round "3"]
[White "ilimchess2"]
[Black "ural58"]
[Result "0-1"]
[WhiteElo "2240"]
[BlackElo "2482"]
[TimeControl "180+1"]
[EndTime "8:24:48 PDT"]
[Termination "ural58 won by resignation"]

1. d4 {[%clk 0:03:00.9]} 1... d5 {[%clk 0:02:50.3]} 2. c4 {[%clk 0:02:59.5]}
2... e5 {[%clk 0:02:49.5]} 3. cxd5 {[%clk 0:02:59.1]} 3... Qxd5 {[%clk
0:02:48.4]} 4. Nc3 {[%clk 0:02:58.6]} 4... Qxd4 {[%clk 0:02:45.3]} 5. Qxd4
{[%clk 0:02:59.2]} 5... exd4 {[%clk 0:02:45.1]} 6. Nb5 {[%clk 0:03:00.1]} 6...
Bb4+ {[%clk 0:02:37.9]} 7. Bd2 {[%clk 0:03:00.1]} 7... Bxd2+ {[%clk 0:02:38.1]}
8. Kxd2 {[%clk 0:03:01]} 8... Na6 {[%clk 0:02:36.6]} 9. Rc1 {[%clk 0:02:53.5]}
9... c5 {[%clk 0:02:33.4]} 10. b4 {[%clk 0:02:39.8]} 10... Bd7 {[%clk
0:02:26.7]} 11. Nd6+ {[%clk 0:02:36.5]} 11... Ke7 {[%clk 0:02:26.8]} 12. Nxb7
{[%clk 0:02:35.1]} 12... Nxb4 {[%clk 0:02:04.8]} 13. a3 {[%clk 0:02:14.8]} 13...
Na2 {[%clk 0:02:00.7]} 14. Rxc5 {[%clk 0:02:12.2]} 14... Nf6 {[%clk 0:01:54.8]}
15. e3 {[%clk 0:02:01.9]} 15... Ne4+ {[%clk 0:01:54]} 16. Ke1 {[%clk 0:02:00.2]}
16... Nxc5 {[%clk 0:01:51.2]} 17. Nxc5 {[%clk 0:02:00.2]} 17... dxe3 {[%clk
0:01:50.4]} 18. fxe3 {[%clk 0:02:00.4]} 18... Rhc8 {[%clk 0:01:49.8]} 0-1

[Event "Early-Titled-Tuesday-Blitz-April-16-2024"]
[Site "Chess.com"]
[Date "2024.04.16"]
[Round "3"]
[White "InitiatingASC"]
[Black "Nutflush"]
[Result "1-0"]
[WhiteElo "2359"]
[BlackElo "2124"]
[TimeControl "180+1"]
[EndTime "8:24:53 PDT"]
[Termination "InitiatingASC won by resignation"]

1. d4 {[%clk 0:03:00.9]} 1... Nf6 {[%clk 0:02:57.5]} 2. c4 {[%clk 0:03:00.3]}
2... e6 {[%clk 0:02:57.4]} 3. Nc3 {[%clk 0:02:59.8]} 3... Bb4 {[%clk 0:02:57]}
4. e3 {[%clk 0:02:59.6]} 4... O-O {[%clk 0:02:55]} 5. Bd3 {[%clk 0:02:59.8]}
5... d5 {[%clk 0:02:54.8]} 6. Nf3 {[%clk 0:03:00]} 6... dxc4 {[%clk 0:02:50]} 7.
Bxc4 {[%clk 0:02:59.7]} 7... c5 {[%clk 0:02:49.2]} 8. O-O {[%clk 0:03:00]} 8...
Nbd7 {[%clk 0:02:46.7]} 9. a3 {[%clk 0:02:56.1]} 9... cxd4 {[%clk 0:02:44.6]}
10. exd4 {[%clk 0:02:53.4]} 10... Be7 {[%clk 0:02:36.5]} 11. Bd3 {[%clk
0:02:44.7]} 11... b6 {[%clk 0:02:33.5]} 12. Bc2 {[%clk 0:02:45]} 12... Bb7
{[%clk 0:02:29.2]} 13. Qd3 {[%clk 0:02:44.9]} 13... h6 {[%clk 0:02:10.7]} 14.
Bf4 {[%clk 0:02:33]} 14... Rc8 {[%clk 0:02:04.4]} 15. Rad1 {[%clk 0:02:32]}
15... Re8 {[%clk 0:01:59]} 16. Ne5 {[%clk 0:02:31.5]} 16... Nf8 {[%clk
0:01:54.1]} 17. Bxh6 {[%clk 0:02:16.7]} 17... gxh6 {[%clk 0:01:46.8]} 18. Qg3+
{[%clk 0:02:16.8]} 18... Ng6 {[%clk 0:01:31]} 19. Bxg6 {[%clk 0:02:12.4]} 1-0

[Event "Early-Titled-Tuesday-Blitz-April-16-2024"]
[Site "Chess.com"]
[Date "2024.04.16"]
[Round "3"]
[White "Hudijegszid"]
[Black "tetrix83"]
[Result "1-0"]
[WhiteElo "2465"]
[BlackElo "2609"]
[TimeControl "180+1"]
[EndTime "8:24:54 PDT"]
[Termination "Hudijegszid won by resignation"]

1. e4 {[%clk 0:02:59.4]} 1... c5 {[%clk 0:02:55.9]} 2. Nf3 {[%clk 0:02:58.2]}
2... Nc6 {[%clk 0:02:54.5]} 3. d4 {[%clk 0:02:58.7]} 3... cxd4 {[%clk
0:02:53.9]} 4. Nxd4 {[%clk 0:02:59.6]} 4... e6 {[%clk 0:02:54.4]} 5. Nc3 {[%clk
0:02:55.6]} 5... Qc7 {[%clk 0:02:53.8]} 6. Ncb5 {[%clk 0:02:54.7]} 6... Qb8
{[%clk 0:02:51.3]} 7. Bd3 {[%clk 0:02:54.3]} 7... Nf6 {[%clk 0:02:49.2]} 8. O-O
{[%clk 0:02:51.8]} 8... a6 {[%clk 0:02:47.7]} 9. Nxc6 {[%clk 0:02:51.5]} 9...
dxc6 {[%clk 0:02:41.8]} 10. Nc3 {[%clk 0:02:44.5]} 10... e5 {[%clk 0:02:40.9]}
11. a4 {[%clk 0:02:42]} 11... a5 {[%clk 0:02:38.2]} 12. Bc4 {[%clk 0:02:38.9]}
12... Bd6 {[%clk 0:02:31.9]} 13. Bg5 {[%clk 0:02:38.5]} 13... Nd7 {[%clk
0:02:30.9]} 14. Qh5 {[%clk 0:02:28.6]} 14... O-O {[%clk 0:02:30.9]} 15. Rad1
{[%clk 0:02:27.8]} 15... Qc7 {[%clk 0:02:19]} 16. Rd3 {[%clk 0:02:27.4]} 16...
Nc5 {[%clk 0:02:11]} 17. Rg3 {[%clk 0:02:27.3]} 17... g6 {[%clk 0:01:44.4]} 18.
Bf6 {[%clk 0:02:14.8]} 18... Re8 {[%clk 0:01:28]} 19. Rxg6+ {[%clk 0:02:11.9]}
1-0

[Event "Early-Titled-Tuesday-Blitz-April-16-2024"]
[Site "Chess.com"]
[Date "2024.04.16"]
[Round "3"]
[White "osielchesslover2011"]
[Black "Chessbard1972"]
[Result "1-0"]
[WhiteElo "2088"]
[BlackElo "2335"]
[TimeControl "180+1"]
[EndTime "8:25:09 PDT"]
[Termination "osielchesslover2011 won by resignation"]

1. e4 {[%clk 0:03:00.9]} 1... e5 {[%clk 0:02:59]} 2. Nf3 {[%clk 0:03:01.2]} 2...
Nc6 {[%clk 0:02:56.9]} 3. Bb5 {[%clk 0:03:01.7]} 3... a6 {[%clk 0:02:56.1]} 4.
Ba4 {[%clk 0:03:02.4]} 4... f5 {[%clk 0:02:55.8]} 5. O-O {[%clk 0:02:59.1]} 5...
Nf6 {[%clk 0:02:54.8]} 6. d4 {[%clk 0:02:58.2]} 6... fxe4 {[%clk 0:02:53.8]} 7.
Nxe5 {[%clk 0:02:51.4]} 7... Bd6 {[%clk 0:02:47]} 8. Bxc6 {[%clk 0:02:47.9]}
8... dxc6 {[%clk 0:02:46.1]} 9. Bg5 {[%clk 0:02:48.2]} 9... O-O {[%clk
0:02:43.8]} 10. Nc3 {[%clk 0:02:47.8]} 10... Bf5 {[%clk 0:02:42.9]} 11. Re1
{[%clk 0:02:39.8]} 11... h6 {[%clk 0:02:34.1]} 12. Bxf6 {[%clk 0:02:35.1]} 12...
Qxf6 {[%clk 0:02:33.3]} 13. Nc4 {[%clk 0:02:25]} 13... Bb4 {[%clk 0:02:27.1]}
14. Ne3 {[%clk 0:02:21.8]} 14... Bh7 {[%clk 0:02:17.6]} 15. Qe2 {[%clk
0:02:19.7]} 15... Qxd4 {[%clk 0:02:14]} 16. Rad1 {[%clk 0:02:16.8]} 16... Qf6
{[%clk 0:02:12.4]} 17. Qc4+ {[%clk 0:02:13.7]} 17... Kh8 {[%clk 0:02:09.9]} 18.
Qxb4 {[%clk 0:02:12.4]} 18... Qxf2+ {[%clk 0:02:10.1]} 19. Kh1 {[%clk
0:02:11.9]} 19... Rad8 {[%clk 0:02:04.5]} 20. h3 {[%clk 0:01:44.8]} 20... Rxd1
{[%clk 0:01:55.8]} 21. Ncxd1 {[%clk 0:01:43.8]} 21... Qg3 {[%clk 0:01:46]} 22.
Qxf8+ {[%clk 0:01:42]} 1-0

[Event "Early-Titled-Tuesday-Blitz-April-16-2024"]
[Site "Chess.com"]
[Date "2024.04.16"]
[Round "3"]
[White "maximnovik"]
[Black "carloseduar100"]
[Result "1-0"]
[WhiteElo "2563"]
[BlackElo "2234"]
[TimeControl "180+1"]
[EndTime "8:25:40 PDT"]
[Termination "maximnovik won by resignation"]

1. e4 {[%clk 0:03:00.9]} 1... e6 {[%clk 0:02:47.7]} 2. d4 {[%clk 0:03:00.1]}
2... d5 {[%clk 0:02:48.1]} 3. e5 {[%clk 0:03:00.6]} 3... c5 {[%clk 0:02:47.3]}
4. c3 {[%clk 0:03:01.1]} 4... Nc6 {[%clk 0:02:47.5]} 5. Nf3 {[%clk 0:03:01.6]}
5... Qb6 {[%clk 0:02:46.9]} 6. Bd3 {[%clk 0:03:01.5]} 6... cxd4 {[%clk
0:02:47.1]} 7. O-O {[%clk 0:03:02]} 7... Bd7 {[%clk 0:02:47.7]} 8. Re1 {[%clk
0:03:02.2]} 8... g6 {[%clk 0:02:45.9]} 9. Nbd2 {[%clk 0:02:55.3]} 9... Bg7
{[%clk 0:02:45.8]} 10. Nb3 {[%clk 0:02:43.6]} 10... dxc3 {[%clk 0:02:45]} 11.
bxc3 {[%clk 0:02:43.3]} 11... Nge7 {[%clk 0:02:45.4]} 12. Ba3 {[%clk 0:02:42.6]}
12... O-O {[%clk 0:02:44.8]} 13. Rb1 {[%clk 0:02:40.1]} 13... Qd8 {[%clk
0:02:43.2]} 14. h4 {[%clk 0:02:20.9]} 14... Nf5 {[%clk 0:02:39.3]} 15. Bxf8
{[%clk 0:02:17.4]} 15... Qxf8 {[%clk 0:02:35]} 16. h5 {[%clk 0:02:12]} 16... b6
{[%clk 0:02:29.3]} 17. hxg6 {[%clk 0:02:11.5]} 17... fxg6 {[%clk 0:02:25.8]} 18.
Nbd4 {[%clk 0:02:08.6]} 18... Nfxd4 {[%clk 0:01:27.8]} 19. cxd4 {[%clk
0:02:06.2]} 19... Nb4 {[%clk 0:01:28]} 20. Bf1 {[%clk 0:01:49]} 20... Rc8 {[%clk
0:01:25.1]} 21. Qd2 {[%clk 0:01:47.4]} 21... Rc2 {[%clk 0:01:21]} 22. Qxb4
{[%clk 0:01:45.7]} 1-0